bitfinex-derivatives/quotes_BTCF0:USTF0_20250929
["timestamp","ask_amount","ask_price","bid_price","bid_amount"]
[1759149180570,0.08903679,112390.0,112380.0,0.43570274]
[1759149180773,0.36801776,112390.0,112380.0,0.01466274]
[1759149180978,1.19785776,112390.0,112380.0,0.01466274]
[1759149181377,0.91927679,112390.0,112380.0,0.01466274]
[1759149181578,1.19785776,112390.0,112380.0,0.01466274]
[1759149182076,1.19785776,112390.0,112380.0,0.03570274]
[1759149182579,1.19785776,112390.0,112380.0,0.12463954]
[1759149182780,0.00050809,112390.0,112380.0,0.12463954]
[1759149182979,0.00010809,112390.0,112380.0,0.52463954]
[1759149183180,0.00050809,112390.0,112380.0,0.52463954]
[1759149183381,0.36801786,112390.0,112380.0,0.03570274]
[1759149183576,0.36801786,112390.0,112380.0,0.12463944]
[1759149183781,0.36801786,112390.0,112380.0,0.12375944]
[1759149183980,0.36801786,112390.0,112380.0,0.03482274]
[1759149184384,0.36801786,112390.0,112380.0,0.12375944]
[1759149184578,0.27908906,112390.0,112380.0,0.12375944]
[1759149184783,0.36801786,112390.0,112380.0,0.12375944]
[1759149185282,0.36801786,112390.0,112380.0,0.03482274]
[1759149186381,0.36801786,112390.0,112380.0,0.12375944]
[1759149186980,0.36761786,112390.0,112380.0,0.12375944]
[1759149187186,0.36801786,112390.0,112380.0,0.12375944]
[1759149187383,0.27908906,112390.0,112380.0,0.12375944]
[1759149187585,0.27908906,112390.0,112380.0,0.52375944]
[1759149187780,0.00050809,112390.0,112380.0,0.52375944]
[1759149187982,0.00010809,112390.0,112380.0,0.52375944]
[1759149188885,0.36801796,112390.0,112380.0,0.52375944]
[1759149189074,0.36801796,112390.0,112380.0,0.43482274]
[1759149189474,0.08943699,112390.0,112380.0,0.52375974]
[1759149189680,0.27908906,112390.0,112380.0,0.12375974]
[1759149190481,0.00050809,112390.0,112380.0,0.52375974]
[1759149191086,0.00010809,112390.0,112380.0,0.52375974]
[1759149191283,0.00010809,112390.0,112380.0,0.80234071]
[1759149191477,0.39006185,112420.0,112410.0,0.1234331]
[1759149191478,0.30115105,112420.0,112410.0,0.1234331]
[1759149191680,0.02257008,112420.0,112410.0,0.1234331]
[1759149192077,0.0004,112420.0,112410.0,0.5234331]
[1759149192281,0.83127557,112440.0,112430.0,0.1234173]
[1759149192586,0.27864416,112440.0,112430.0,0.1234173]
[1759149192786,0.27904416,112440.0,112430.0,0.1234173]
[1759149192982,0.27904416,112440.0,112430.0,0.1234175]
[1759149193383,6.319e-05,112440.0,112430.0,0.1234175]
[1759149193584,0.00046319,112440.0,112430.0,0.5234175]
[1759149193779,6.319e-05,112440.0,112430.0,0.5234175]
[1759149194086,0.00046319,112440.0,112430.0,0.5234175]
[1759149194287,6.319e-05,112440.0,112430.0,0.5234175]
[1759149194487,0.00046319,112440.0,112430.0,0.5234175]
[1759149195582,0.0888618,112480.0,112460.0,0.1230638]
[1759149195784,0.3953418,112480.0,112470.0,0.03419]
[1759149196684,0.3957418,112480.0,112470.0,0.03419]
[1759149196889,0.67432277,112480.0,112470.0,0.03419]
[1759149197686,0.3957418,112480.0,112470.0,0.03419]
[1759149197887,0.67432277,112480.0,112470.0,0.03419]
[1759149198892,0.67432277,112480.0,112470.0,0.01301]
[1759149199681,1.14596544,112480.0,112470.0,0.01301]
[1759149201786,0.0888661,112470.0,112460.0,0.01301]
[1759149202088,0.36744707,112470.0,112460.0,0.01301]
[1759149203595,0.76744707,112470.0,112460.0,0.01301]
[1759149206997,0.0888742,112460.0,112450.0,0.01301]
[1759149207198,1.20213517,112460.0,112450.0,0.01301]
[1759149207395,0.36745517,112460.0,112450.0,0.1018922]
[1759149207601,1.20193517,112460.0,112450.0,0.1231722]
[1759149207801,1.20193517,112460.0,112450.0,0.01301]
[1759149208099,1.22227589,112460.0,112450.0,0.01301]
[1759149209500,0.38779589,112460.0,112450.0,0.01301]
[1759149209700,1.22187589,112460.0,112450.0,0.01301]
[1759149209898,0.0888822,112450.0,112440.0,0.01389]
[1759149210103,0.36746317,112450.0,112440.0,0.01389]
[1759149210602,0.0888822,112450.0,112440.0,0.12406]
[1759149210794,0.36746317,112450.0,112440.0,0.12406]
[1759149210994,0.9226422,112450.0,112440.0,0.12406]
[1759149211203,0.36746317,112450.0,112440.0,0.12406]
[1759149212103,0.36746317,112450.0,112440.0,0.1240601]
[1759149213400,0.36746317,112450.0,112440.0,0.01389]
[1759149213595,0.36746317,112450.0,112440.0,0.00088]
[1759149213596,0.76746317,112450.0,112440.0,0.00088]
[1759149218710,1.60190317,112450.0,112440.0,0.00088]
[1759149219402,0.0888979,112430.0,112420.0,0.01391]
[1759149219603,1.20175887,112430.0,112420.0,0.01391]
[1759149220311,1.27407159,112430.0,112420.0,0.01391]
[1759149221311,0.44019159,112430.0,112420.0,0.01391]
[1759149221507,1.25337115,112430.0,112420.0,0.01391]
[1759149222518,0.44697115,112430.0,112420.0,0.01391]
[1759149222811,1.28049115,112430.0,112420.0,0.01391]
[1759149223316,0.44697115,112430.0,112420.0,0.01391]
[1759149223517,1.27225115,112430.0,112420.0,0.01391]
[1759149224716,1.28025115,112430.0,112420.0,0.01391]
[1759149225316,0.44697115,112430.0,112420.0,0.01391]
[1759149225517,1.27989115,112430.0,112420.0,0.01391]
[1759149227114,0.0889073,112420.0,112410.0,0.01391]
[1759149227423,0.36748827,112420.0,112410.0,0.01391]
[1759149228217,0.40961515,112420.0,112410.0,0.01391]
[1759149229421,1.24161515,112420.0,112410.0,0.01391]
[1759149230725,1.24149515,112420.0,112410.0,0.01391]
[1759149232731,1.24073515,112420.0,112410.0,0.01391]
[1759149233026,0.40961515,112420.0,112410.0,0.01391]
[1759149233226,1.24073515,112420.0,112410.0,0.01391]
[1759149233429,0.40961515,112420.0,112410.0,0.01391]
[1759149233628,1.24053515,112420.0,112410.0,0.01391]
[1759149234328,0.40961515,112420.0,112410.0,0.01391]
[1759149234528,1.24045515,112420.0,112410.0,0.01391]
[1759149236231,1.68948559,112420.0,112410.0,0.01391]
[1759149236822,2.08948559,112420.0,112410.0,0.01391]
[1759149239232,1.25864559,112420.0,112410.0,0.01391]
[1759149239432,2.08840559,112420.0,112410.0,0.01391]
[1759149239832,2.08820559,112420.0,112410.0,0.01391]
[1759149240628,1.25864559,112420.0,112410.0,0.01391]
[1759149240831,2.08796559,112420.0,112410.0,0.01391]
[1759149242940,2.17687289,112420.0,112400.0,0.01479]
[1759149243134,0.85865199,112410.0,112400.0,0.01479]
[1759149243334,0.87968258,112410.0,112400.0,0.00088]
[1759149244542,0.0889216,112400.0,112390.0,0.01391]
[1759149244740,1.68741989,112400.0,112390.0,0.01391]
[1759149245842,0.0889295,112390.0,112380.0,0.01421274]
[1759149246144,0.60208836,112390.0,112380.0,0.01421274]
[1759149246442,0.85866779,112390.0,112380.0,0.01421274]
[1759149246743,0.60208836,112390.0,112380.0,0.01421274]
[1759149247641,1.43048836,112390.0,112380.0,0.01421274]
[1759149247844,1.43040836,112390.0,112380.0,0.01421274]
[1759149248044,1.42540836,112390.0,112380.0,0.01421274]
[1759149249545,1.49603416,112390.0,112380.0,0.01421274]
[1759149249937,1.77375163,112390.0,112380.0,0.00030274]
[1759149250139,0.0889372,112380.0,112370.0,0.01388201]
[1759149250444,0.85867549,112380.0,112370.0,0.01388201]
[1759149251644,1.69067549,112380.0,112370.0,0.01388201]
[1759149251942,0.85867549,112380.0,112370.0,0.01388201]
[1759149252143,1.69043549,112380.0,112370.0,0.03691201]
[1759149253739,1.69725835,112380.0,112370.0,0.03691201]
[1759149253939,1.69725835,112380.0,112370.0,0.01388201]
[1759149254836,1.69669835,112380.0,112370.0,0.01388201]
[1759149255041,1.69661835,112380.0,112370.0,0.03675201]
[1759149256547,1.69661835,112380.0,112370.0,0.01388201]
[1759149258045,0.86549835,112380.0,112370.0,0.01388201]
[1759149258251,1.69637835,112380.0,112370.0,0.03675201]
[1759149258854,1.69637835,112380.0,112370.0,0.01388201]
[1759149259452,1.69605835,112380.0,112370.0,0.03526201]
[1759149259653,1.69625835,112380.0,112370.0,0.03526201]
[1759149259841,1.69617835,112380.0,112370.0,0.03526201]
[1759149260042,1.69609835,112380.0,112370.0,0.03526201]
[1759149260249,0.86549835,112380.0,112370.0,0.03526201]
[1759149260450,1.69609835,112380.0,112370.0,0.03526201]
[1759149264349,0.60891892,112380.0,112370.0,0.12420741]
[1759149264555,1.69573835,112380.0,112370.0,0.03526201]
[1759149265049,0.86589835,112380.0,112370.0,0.03526201]
[1759149265245,1.69585835,112380.0,112370.0,0.03526201]
[1759149266658,1.69585835,112380.0,112370.0,0.12420721]
[1759149267048,1.69585835,112380.0,112370.0,0.03526201]
[1759149268054,1.69585835,112380.0,112370.0,0.01388201]
[1759149271460,1.69585835,112380.0,112370.0,0.03526201]
[1759149272855,0.86589835,112380.0,112370.0,0.03526201]
[1759149273055,1.69469835,112380.0,112370.0,0.12420721]
[1759149273863,1.69469835,112380.0,112370.0,0.03526201]
[1759149274252,1.69469835,112380.0,112370.0,0.01388201]
[1759149277655,0.86589835,112380.0,112370.0,0.01388201]
[1759149277857,1.69361835,112380.0,112370.0,0.01388201]
[1759149278165,1.69353835,112380.0,112370.0,0.03526201]
[1759149279370,1.69345835,112380.0,112370.0,0.03526201]
[1759149280166,1.69345835,112380.0,112370.0,0.06695851]
[1759149280963,0.86589835,112380.0,112370.0,0.06695851]
[1759149281168,1.69345835,112380.0,112370.0,0.06695851]
[1759149281669,1.69345835,112380.0,112370.0,0.15590351]
[1759149281670,0.86589835,112380.0,112370.0,0.15590351]
[1759149281971,1.69309835,112380.0,112370.0,0.15590351]
[1759149282765,0.86589835,112380.0,112370.0,0.15590351]
[1759149283069,1.69289835,112380.0,112370.0,0.15590351]
[1759149284170,0.86589835,112380.0,112370.0,0.15590351]
[1759149284370,1.43659882,112380.0,112370.0,0.15590351]
[1759149284571,1.43619882,112380.0,112370.0,0.15590351]
[1759149284773,1.43659882,112380.0,112370.0,0.15590351]
[1759149287073,1.43603882,112380.0,112370.0,0.15590351]
[1759149288168,0.51355886,112380.0,112370.0,0.15590351]
[1759149288374,1.08367353,112380.0,112370.0,0.57201537]
[1759149288672,1.08343353,112380.0,112370.0,0.57201537]
[1759149289676,0.25707353,112380.0,112370.0,0.57201537]
[1759149289875,0.25707353,112380.0,112370.0,0.5881907]
[1759149290074,0.25667353,112380.0,112370.0,0.5881907]
[1759149290266,0.25707353,112380.0,112370.0,0.57200216]
[1759149290466,0.0004,112380.0,112370.0,0.57200216]
[1759149290965,1.15357933,112390.0,112370.0,0.82867569]
[1759149291170,0.32729933,112390.0,112380.0,0.15645987]
[1759149292576,0.41622853,112390.0,112380.0,0.15645987]
[1759149292976,0.32729933,112390.0,112380.0,0.15645987]
[1759149294271,0.32729933,112390.0,112380.0,0.55645987]
[1759149294875,0.32769933,112390.0,112380.0,0.56364111]
[1759149295478,0.32769933,112390.0,112380.0,0.56452111]
[1759149297080,0.25707353,112390.0,112380.0,0.56452111]
[1759149297281,0.25707353,112390.0,112380.0,0.83712702]
[1759149297282,0.0004,112390.0,112380.0,0.83712702]
[1759149297479,0.27770412,112410.0,112400.0,0.1245814]
[1759149297687,0.27850412,112410.0,112400.0,0.15637589]
[1759149297988,0.27770412,112410.0,112400.0,0.15637589]
[1759149298176,0.27810412,112410.0,112400.0,0.1245814]
[1759149299186,0.27810412,112410.0,112400.0,0.5245814]
[1759149299587,0.27770412,112410.0,112400.0,0.5245814]
[1759149299784,0.27810412,112410.0,112400.0,0.5245814]
[1759149300289,0.27810412,112410.0,112400.0,0.55637589]
[1759149300883,0.36701752,112410.0,112400.0,0.55637589]
[1759149301084,0.62369105,112410.0,112400.0,0.15637589]
[1759149301286,0.62369105,112410.0,112400.0,0.1245814]
[1759149302494,0.60266046,112410.0,112400.0,0.1245814]
[1759149306987,0.60266046,112410.0,112400.0,0.03566]
[1759149307187,0.60266046,112410.0,112400.0,0.01326]
[1759149307491,1.00266046,112410.0,112400.0,0.01326]
[1759149307792,1.02330903,112410.0,112390.0,0.01326]
[1759149307986,1.08059353,112400.0,112390.0,0.01326]
[1759149308198,0.34559493,112400.0,112390.0,0.01326]
[1759149308387,1.16983493,112400.0,112390.0,0.01326]
[1759149308782,1.16983493,112400.0,112390.0,0.03566]
[1759149309286,1.16983493,112400.0,112390.0,0.01326]
[1759149309683,1.82650846,112400.0,112390.0,0.01326]
[1759149309894,1.82666846,112400.0,112390.0,0.01326]
[1759149310395,1.82706846,112400.0,112390.0,0.03566]
[1759149310595,0.74559493,112400.0,112390.0,0.1245892]
[1759149310887,0.25667353,112400.0,112390.0,0.1245892]
[1759149311194,0.25707353,112400.0,112390.0,0.1245892]
[1759149311891,0.34599493,112400.0,112390.0,0.1245892]
[1759149312590,0.74599493,112400.0,112390.0,0.01326]
[1759149317185,0.0889295,112390.0,112380.0,0.01326]
[1759149317393,0.67499397,112390.0,112380.0,0.01326]
[1759149317594,0.69612343,112390.0,112380.0,0.01326]
[1759149317892,1.52112343,112390.0,112380.0,0.01326]
[1759149318294,1.52112343,112390.0,112380.0,0.01414]
[1759149319600,0.69612343,112390.0,112380.0,0.01414]
[1759149319796,1.52104343,112390.0,112380.0,0.01414]
[1759149321800,0.69612343,112390.0,112380.0,0.01414]
[1759149322001,1.52060343,112390.0,112380.0,0.01414]
[1759149322901,0.69612343,112390.0,112380.0,0.01414]
[1759149323097,1.52048343,112390.0,112380.0,0.01414]
[1759149323597,1.92048343,112390.0,112380.0,0.01414]
[1759149325402,1.09612343,112390.0,112380.0,0.01414]
[1759149325597,1.91984343,112390.0,112380.0,0.01414]
[1759149326204,1.91984343,112390.0,112380.0,0.00088]
[1759149331019,0.0889368,112380.0,112370.0,0.01388201]
[1759149331320,0.60228386,112380.0,112370.0,0.01388201]
[1759149331520,0.60228386,112380.0,112370.0,8.201e-05]
[1759149333421,1.42548386,112380.0,112370.0,8.201e-05]
[1759149333721,0.0889447,112370.0,112360.0,0.01326]
[1759149333922,0.60229176,112370.0,112360.0,0.01326]
[1759149334320,0.34561823,112370.0,112360.0,0.01326]
[1759149334521,0.60229176,112370.0,112360.0,0.01326]
[1759149334723,0.602357,112370.0,112360.0,0.01326]
[1759149335121,1.425517,112370.0,112360.0,0.01326]
[1759149335321,0.602357,112370.0,112360.0,0.01326]
[1759149335622,1.425757,112370.0,112360.0,0.01326]
[1759149335825,0.0889525,112360.0,112350.0,0.01386]
[1759149336024,0.60241133,112360.0,112350.0,0.01386]
[1759149336222,1.42569133,112360.0,112350.0,0.01386]
[1759149336525,0.00051177,112360.0,112350.0,0.5246904]
[1759149336726,0.2571853,112360.0,112350.0,0.55648489]
[1759149336926,0.2567853,112360.0,112350.0,0.55648489]
[1759149337118,0.2571853,112360.0,112350.0,0.55648489]
[1759149339522,0.2571853,112360.0,112350.0,0.15648489]
[1759149339722,0.2571853,112360.0,112350.0,0.17238214]
[1759149340330,0.2571853,112360.0,112350.0,0.15651822]
[1759149341325,0.2571853,112360.0,112350.0,0.20420996]
[1759149343227,0.2571853,112360.0,112350.0,0.17238214]
[1759149345730,0.00051177,112360.0,112350.0,0.17238214]
[1759149345926,0.2571853,112360.0,112350.0,0.17238214]
[1759149349129,0.00051177,112360.0,112350.0,0.57238214]
[1759149349328,0.2571853,112360.0,112350.0,0.57238214]
[1759149349529,0.2567853,112360.0,112350.0,0.57238214]
[1759149349732,0.2571853,112360.0,112350.0,0.57238214]
[1759149350332,0.51395441,112360.0,112350.0,0.57238214]
[1759149352328,0.51395441,112360.0,112350.0,0.82910346]
[1759149352529,0.00011177,112360.0,112350.0,0.78141172]
[1759149352729,0.25752132,112380.0,112370.0,0.1243546]
[1759149352927,0.51424264,112380.0,112370.0,0.46075205]
[1759149353233,0.51384264,112380.0,112370.0,0.4288816]
[1759149353529,0.51384264,112380.0,112370.0,0.17216028]
[1759149354336,0.51384264,112380.0,112370.0,0.57216028]
[1759149354632,0.51344264,112380.0,112370.0,0.57216028]
[1759149354833,0.51384264,112380.0,112370.0,0.57216028]
[1759149355334,0.85950066,112380.0,112370.0,0.2040078]
[1759149355532,0.85950066,112380.0,112370.0,0.06725752]
[1759149355724,0.85950066,112380.0,112370.0,0.15620212]
[1759149355927,0.60277934,112380.0,112370.0,0.15620212]
[1759149356528,0.51384264,112380.0,112370.0,0.15620212]
[1759149357236,0.60277934,112380.0,112370.0,0.15620212]
[1759149358640,0.60277934,112380.0,112370.0,0.06725752]
[1759149358837,0.85950066,112380.0,112370.0,0.06725752]
[1759149359036,0.85950066,112380.0,112370.0,0.04504752]
[1759149359236,0.85950066,112380.0,112370.0,0.13399212]
[1759149359437,0.85950066,112380.0,112370.0,0.15620212]
[1759149359638,0.60277934,112380.0,112370.0,0.15620212]
[1759149359837,1.42473934,112380.0,112370.0,0.15620212]
[1759149360040,1.42433934,112380.0,112370.0,0.15620212]
[1759149360232,1.42473934,112380.0,112370.0,0.1243546]
[1759149362539,1.68146066,112380.0,112370.0,0.03541]
[1759149362744,2.08146066,112380.0,112370.0,0.0132]
[1759149364239,0.0889446,112370.0,112360.0,0.0132]
[1759149364440,0.87913138,112370.0,112360.0,0.0132]
[1759149364647,0.87913138,112370.0,112350.0,0.01386]
[1759149364648,0.0889524,112360.0,112350.0,0.01386]
[1759149364945,1.70141918,112360.0,112350.0,0.01386]
[1759149365145,0.87913918,112360.0,112350.0,0.01386]
[1759149365443,1.70141918,112360.0,112350.0,0.01386]
[1759149367241,0.0889604,112350.0,112340.0,0.01409]
[1759149367449,0.89955489,112350.0,112340.0,0.01409]
[1759149367746,1.46511357,112350.0,112340.0,0.01409]
[1759149369045,1.46491357,112350.0,112340.0,0.01409]
[1759149370349,1.72163489,112350.0,112340.0,0.01409]
[1759149370650,1.72163489,112350.0,112340.0,0.02759334]
[1759149371348,1.46491357,112350.0,112340.0,0.02759334]
[1759149371544,0.64283357,112350.0,112340.0,0.02761955]
[1759149371744,1.46451357,112350.0,112340.0,0.11658785]
[1759149371939,0.64283357,112350.0,112340.0,0.11658785]
[1759149372144,1.46451357,112350.0,112340.0,0.11658785]
[1759149372545,1.46443357,112350.0,112340.0,0.11658785]
[1759149372750,1.46439357,112350.0,112340.0,0.11658785]
[1759149372939,0.64283357,112350.0,112340.0,0.11658785]
[1759149373144,1.46427357,112350.0,112340.0,0.13879785]
[1759149373344,0.36781702,112350.0,112340.0,0.5252683]
[1759149373550,1.07860132,112350.0,112340.0,0.5252683]
[1759149373737,0.0004,112350.0,112340.0,0.5252683]
[1759149373943,0.25672132,112350.0,112340.0,0.5252683]
[1759149374147,0.25712132,112350.0,112340.0,0.5252683]
[1759149374447,0.51384264,112350.0,112340.0,0.1252681]
[1759149374653,0.60280284,112350.0,112340.0,0.1252681]
[1759149375550,1.42460284,112350.0,112340.0,0.1252681]
[1759149375952,0.60280284,112350.0,112340.0,0.1252681]
[1759149376250,1.42432284,112350.0,112340.0,0.1252681]
[1759149376551,0.0893602,112350.0,112340.0,0.1252681]
[1759149376850,1.14996284,112350.0,112340.0,0.1252681]
[1759149377853,0.25712132,112350.0,112340.0,0.5252681]
[1759149378054,0.25672132,112350.0,112340.0,0.5252681]
[1759149378250,0.34608192,112350.0,112340.0,0.5252681]
[1759149378456,0.60280324,112350.0,112340.0,0.0363]
[1759149378760,0.60280324,112350.0,112340.0,0.1252686]
[1759149379154,0.34608192,112350.0,112340.0,0.1252686]
[1759149379756,0.60280324,112350.0,112340.0,0.1252686]
[1759149380847,0.34608192,112350.0,112340.0,0.1252686]
[1759149382355,0.60280324,112350.0,112340.0,0.1252686]
[1759149383655,1.25952456,112350.0,112340.0,0.01409]
[1759149383857,1.27967725,112350.0,112340.0,0.01409]
[1759149384158,0.62295593,112350.0,112340.0,0.1245588]
[1759149384359,0.34608212,112350.0,112340.0,0.1245588]
[1759149384752,0.60280344,112350.0,112340.0,0.03559]
[1759149384954,0.60240344,112350.0,112340.0,0.03559]
[1759149385149,0.62255951,112350.0,112340.0,0.03559]
[1759149385348,0.62295951,112350.0,112340.0,0.03559]
[1759149385559,1.02295951,112350.0,112340.0,0.01409]
[1759149386252,1.02295951,112350.0,112340.0,0.03559]
[1759149387966,1.09561014,112350.0,112340.0,0.03559]
[1759149388871,0.69561014,112350.0,112340.0,0.1245588]
[1759149389075,1.35879871,112350.0,112340.0,0.1245588]
[1759149389276,1.35879871,112350.0,112340.0,0.1380969]
[1759149389574,1.44775951,112350.0,112340.0,0.1245588]
[1759149389879,1.35919871,112350.0,112340.0,0.1245588]
[1759149390078,1.44815951,112350.0,112340.0,0.1245588]
[1759149391180,0.53399871,112350.0,112340.0,0.13811851]
[1759149391376,0.01187404,112350.0,112340.0,0.79483983]
[1759149391577,0.25672132,112360.0,112350.0,0.1233506]
[1759149391776,0.51424264,112360.0,112350.0,0.1233506]
[1759149391981,1.33820264,112360.0,112350.0,0.1233506]
[1759149392178,1.33860264,112360.0,112350.0,0.1233506]
[1759149392378,0.51384264,112360.0,112350.0,0.1233506]
[1759149392577,1.33852264,112360.0,112350.0,0.1233506]
[1759149392780,1.33856264,112360.0,112350.0,0.1233506]
[1759149394480,0.51384264,112360.0,112350.0,0.1233506]
[1759149395575,0.60279504,112360.0,112350.0,0.1233506]
[1759149397082,0.85951636,112360.0,112350.0,0.03439]
[1759149397279,1.25951636,112360.0,112350.0,0.01289]
[1759149397676,0.0889603,112350.0,112340.0,0.01409]
[1759149397981,1.42724294,112350.0,112340.0,0.03559]
[1759149399077,1.4979223,112350.0,112340.0,0.1245584]
[1759149399279,1.4976423,112350.0,112340.0,0.1245584]
[1759149399672,1.33868264,112350.0,112340.0,0.1245584]
[1759149400079,1.33828264,112350.0,112340.0,0.1245584]
[1759149400280,0.51384264,112350.0,112340.0,0.1245584]
[1759149400482,1.33864264,112350.0,112340.0,0.1245584]
[1759149400785,1.42760314,112350.0,112340.0,0.1245584]
[1759149402376,0.25712132,112350.0,112340.0,0.5245584]
[1759149402582,0.25672132,112350.0,112340.0,0.5236684]
[1759149402783,0.25712132,112350.0,112340.0,0.5236684]
[1759149402983,0.25672132,112350.0,112340.0,0.5236684]
[1759149403181,0.25712132,112350.0,112340.0,0.5236684]
[1759149404486,0.60280294,112350.0,112340.0,0.5236684]
[1759149404788,0.60280294,112350.0,112340.0,0.1236684]
[1759149405188,0.62294794,112350.0,112340.0,0.1236684]
[1759149405689,0.62294794,112350.0,112340.0,0.0347]
[1759149405888,0.62294794,112350.0,112340.0,0.1236682]
[1759149406081,0.62294794,112350.0,112340.0,0.1245582]
[1759149406382,1.09263803,112350.0,112340.0,0.01409]
[1759149409397,0.57919539,112350.0,112340.0,0.01409]
[1759149409592,1.09263803,112350.0,112340.0,0.01409]
[1759149412392,1.09291353,112350.0,112340.0,0.01409]
[1759149412592,1.09291353,112350.0,112340.0,0.0367]
[1759149412894,1.91559353,112350.0,112340.0,0.1256684]
[1759149413780,1.91559353,112350.0,112340.0,0.0367]
[1759149413984,1.09291353,112350.0,112340.0,0.0367]
[1759149414295,1.91535353,112350.0,112340.0,0.1256684]
[1759149414493,0.57919539,112350.0,112340.0,0.1256684]
[1759149414693,1.91555353,112350.0,112340.0,0.1256684]
[1759149414991,1.91559353,112350.0,112340.0,0.1256684]
[1759149415588,1.09291353,112350.0,112340.0,0.0367]
[1759149415790,1.91547353,112350.0,112340.0,0.1256684]
[1759149416295,1.09291353,112350.0,112340.0,0.1256684]
[1759149416482,1.09291353,112350.0,112340.0,0.0367]
[1759149416690,1.91535353,112350.0,112340.0,0.0367]
[1759149417193,1.91535353,112350.0,112340.0,0.5256684]
[1759149417194,0.34709416,112350.0,112340.0,0.5256684]
[1759149417489,1.25793466,112350.0,112340.0,0.4367]
[1759149417694,1.25833466,112350.0,112340.0,0.5256684]
[1759149418587,0.020545,112350.0,112340.0,0.5256684]
[1759149418784,0.27740407,112350.0,112340.0,0.5256684]
[1759149418987,0.25685907,112350.0,112340.0,0.57347408]
[1759149419186,0.25725907,112350.0,112340.0,0.57347408]
[1759149419389,0.0004,112350.0,112340.0,0.57347408]
[1759149419590,0.25725907,112350.0,112340.0,0.57347408]
[1759149419890,0.0893603,112350.0,112340.0,0.57347408]
[1759149420091,0.34621937,112350.0,112340.0,0.57347408]
[1759149421297,0.0893603,112350.0,112340.0,0.57347408]
[1759149421490,0.34621937,112350.0,112340.0,0.57347408]
[1759149421691,0.60307844,112350.0,112340.0,0.0367]
[1759149421896,0.62321987,112350.0,112340.0,0.0367]
[1759149422596,0.62321987,112350.0,112340.0,0.1256684]
[1759149422901,0.62321987,112350.0,112340.0,0.0367]
[1759149423093,0.62322197,112350.0,112340.0,0.0367]
[1759149423598,0.62322197,112350.0,112340.0,0.01409]
[1759149423900,1.09562365,112350.0,112340.0,0.01409]
[1759149425095,1.09562365,112350.0,112340.0,0.00089]
[1759149425296,1.12756677,112350.0,112340.0,0.00089]
[1759149426695,0.0889763,112330.0,112320.0,0.0132]
[1759149426900,1.43667469,112330.0,112320.0,0.02675171]
[1759149427795,1.43667469,112330.0,112320.0,0.0132]
[1759149428102,1.83667469,112330.0,112320.0,0.0132]
[1759149428296,1.85762131,112330.0,112320.0,0.0132]
[1759149429505,1.86583276,112330.0,112320.0,0.0132]
[1759149429704,1.04299276,112330.0,112320.0,0.0132]
[1759149429905,1.86583276,112330.0,112320.0,0.0132]
[1759149430101,1.04299276,112330.0,112320.0,0.0132]
[1759149430303,1.86579276,112330.0,112320.0,0.0132]
[1759149430511,1.86567276,112330.0,112320.0,0.0132]
[1759149430810,1.04299276,112330.0,112320.0,0.0132]
[1759149431008,1.86563276,112330.0,112320.0,0.0132]
[1759149432009,1.86559276,112330.0,112320.0,0.0132]
[1759149432909,0.0889842,112320.0,112310.0,0.01289]
[1759149433108,0.62284587,112320.0,112310.0,0.01289]
[1759149433310,1.44504587,112320.0,112310.0,0.01289]
[1759149433909,0.62284587,112320.0,112310.0,0.01289]
[1759149434204,1.44504587,112320.0,112310.0,0.01289]
[1759149434511,1.44504587,112320.0,112310.0,0.02642947]
[1759149435104,1.44488587,112320.0,112310.0,0.02642947]
[1759149435405,1.44484587,112320.0,112310.0,0.02642947]
[1759149435802,0.62284587,112320.0,112310.0,0.02642947]
[1759149436008,1.44484587,112320.0,112310.0,0.04798947]
[1759149436405,1.44484587,112320.0,112310.0,0.02642947]
[1759149436610,0.0889931,112310.0,112300.0,0.01274]
[1759149436809,0.62285477,112310.0,112300.0,0.01274]
[1759149437108,0.3659957,112310.0,112300.0,0.01274]
[1759149438304,0.62285477,112310.0,112300.0,0.01274]
[1759149439103,1.44441477,112310.0,112300.0,0.01274]
[1759149439413,0.62285477,112310.0,112300.0,0.01274]
[1759149440109,1.44429477,112310.0,112300.0,0.01274]
[1759149440906,0.3659957,112310.0,112300.0,0.01274]
[1759149441212,0.3659957,112310.0,112300.0,0.03536]
[1759149441517,1.1883157,112310.0,112300.0,0.03536]
[1759149442110,1.1883157,112310.0,112300.0,0.1243616]
[1759149442414,1.1881557,112310.0,112300.0,0.03536]
[1759149442708,1.1881557,112310.0,112300.0,0.01274]
[1759149443814,1.44501477,112310.0,112300.0,0.01274]
[1759149445113,0.3663957,112310.0,112300.0,0.1243617]
[1759149445414,1.1880757,112310.0,112300.0,0.1243617]
[1759149445607,0.34585217,112310.0,112300.0,0.1243617]
[1759149445808,0.41842951,112310.0,112300.0,0.1243617]
[1759149446004,0.41882951,112310.0,112300.0,0.1243617]
[1759149446203,1.24038951,112310.0,112300.0,0.1243617]
[1759149446606,0.32943591,112310.0,112300.0,0.5243617]
[1759149446912,1.15147591,112310.0,112300.0,0.5243617]
[1759149447106,1.15187591,112310.0,112300.0,0.5243617]
[1759149447305,1.15147591,112310.0,112300.0,0.5243617]
[1759149447709,1.15187591,112310.0,112300.0,0.5243617]
[1759149448317,1.15159591,112310.0,112300.0,0.5243617]
[1759149448513,1.15119591,112310.0,112300.0,0.5243617]
[1759149448712,0.32983591,112310.0,112300.0,0.5243617]
[1759149449018,0.32943591,112310.0,112300.0,0.5243617]
[1759149449218,0.32983591,112310.0,112300.0,0.5243617]
[1759149450318,0.0004,112310.0,112300.0,0.5243617]
[1759149450523,0.25685907,112310.0,112300.0,0.5243617]
[1759149450725,0.25725907,112310.0,112300.0,0.78122077]
[1759149450927,0.25685907,112310.0,112300.0,0.5243617]
[1759149451324,0.25725907,112310.0,112300.0,0.5243617]
[1759149451726,0.34625257,112310.0,112300.0,0.5243617]
[1759149452228,0.34625257,112310.0,112300.0,0.1243617]
[1759149452829,0.41707102,112310.0,112300.0,0.1243617]
[1759149453328,0.41707102,112310.0,112300.0,0.03536]
[1759149454023,0.41707102,112310.0,112300.0,0.1243615]
[1759149454928,0.41667092,112310.0,112300.0,0.1243615]
[1759149455120,0.41667092,112310.0,112300.0,0.15624126]
[1759149455324,0.41707092,112310.0,112300.0,0.15624126]
[1759149455523,0.41707092,112310.0,112300.0,0.15624116]
[1759149455723,0.41707092,112310.0,112300.0,0.1243614]
[1759149456831,0.41707092,112310.0,112300.0,0.03536]
[1759149457335,1.07392999,112310.0,112300.0,0.01274]
[1759149457834,1.09456473,112310.0,112300.0,0.01274]
[1759149458326,0.0890013,112300.0,112290.0,0.01282141]
[1759149458527,0.60271944,112300.0,112290.0,0.03544141]
[1759149458829,1.42471944,112300.0,112290.0,0.03544141]
[1759149459333,1.42511944,112300.0,112290.0,0.03544141]
[1759149461531,1.42499944,112300.0,112290.0,8.141e-05]
[1759149461735,0.0890092,112290.0,112280.0,0.01363]